bitfinex-derivatives/quotes_SOLF0:USTF0_20251020
["timestamp","ask_amount","ask_price","bid_price","bid_amount"]
[1760998832333,1.76985904,190.17,190.16,7.5821]
[1760998833036,1.76985904,190.22,190.18,2.85]
[1760998833533,1.76985904,190.22,190.2,4.7309]
[1760998833732,1.76985904,190.22,190.2,7.5809]
[1760998836330,4.48985904,190.22,190.2,4.7309]
[1760998837441,4.48985904,190.22,190.17,2.85]
[1760998837442,2.72,190.21,190.18,4.7315]
[1760998837627,1.76985904,190.2,190.18,4.7315]
[1760998838028,1.76985904,190.2,190.18,7.5815]
[1760998839838,2.72,190.21,190.19,4.7311]
[1760998842835,4.48985904,190.21,190.19,4.7311]
[1760998843035,2.72,190.2,190.17,4.7317]
[1760998843236,2.72,190.18,190.17,4.7317]
[1760998843442,43.66,190.19,190.15,2.85]
[1760998844136,46.38,190.19,190.18,4.7315]
[1760998844435,2.72,190.19,190.18,4.7315]
[1760998844637,2.72,190.19,190.16,4.7321]
[1760998844834,2.72,190.19,190.15,2.85]
[1760998845034,43.66,190.2,190.15,2.85]
[1760998845232,46.38,190.2,190.15,2.85]
[1760998845942,46.38,190.2,190.13,2.85]
[1760998846346,2.72,190.19,190.16,4.7319]
[1760998846534,2.72,190.19,190.13,2.85]
[1760998846735,1.76985904,190.19,190.13,2.85]
[1760998847042,2.72,190.18,190.15,4.7322]
[1760998847441,1.76985904,190.17,190.13,4.7327]
[1760998847632,2.72,190.15,190.13,4.7327]
[1760998848050,2.72,190.14,190.13,4.7327]
[1760998848232,2.72,190.14,190.11,4.7333]
[1760998848436,2.72,190.14,190.1,2.85]
[1760998848632,2.72,190.12,190.08,2.85]
[1760998849943,2.72,190.12,190.09,4.7337]
[1760998850848,2.72,190.12,190.09,7.5837]
[1760998851247,2.72,190.12,190.09,4.7337]
[1760998851448,2.72,190.1,190.07,4.7342]
[1760998851746,2.72,190.1,190.07,7.5842]
[1760998854344,2.72,190.1,190.07,4.7342]
[1760998854548,1.76985904,190.09,190.07,4.7342]
[1760998854757,1.76985904,190.09,190.03,7.72165785]
[1760998854758,2.72,190.08,190.05,4.7347]
[1760998855241,2.72,190.1,190.03,2.85]
[1760998855438,2.72,190.13,190.04,2.85]
[1760998855653,1.76985904,190.15,190.07,2.85]
[1760998855838,1.76985904,190.13,190.07,2.85]
[1760998856042,2.72,190.12,190.09,4.7337]
[1760998856249,2.72,190.12,190.09,2.85]
[1760998857048,15.14,190.13,190.1,2.85]
[1760998857546,17.92,190.13,190.1,2.85]
[1760998857944,17.92,190.13,190.06,6.64151689]
[1760998858251,17.92,190.13,190.07,2.87]
[1760998859950,2.78,190.12,190.1,4.7335]
[1760998864652,2.78,190.12,190.08,4.734]
[1760998869666,2.78,190.12,190.04,4.63985904]
[1760998869864,1.76985904,190.09,190.04,2.87]
[1760998870066,2.78,190.08,190.04,2.87]
[1760998870672,1.76985904,190.09,190.06,2.87]
[1760998870866,2.78,190.12,190.06,2.87]
[1760998871263,2.78,190.12,190.09,4.7337]
[1760998871865,2.78,190.12,190.09,7.6037]
[1760998872066,4.54985904,190.13,190.1,2.87]
[1760998872673,1.76985904,190.11,190.07,7.6042]
[1760998872873,2.78,190.1,190.07,7.6042]
[1760998873071,2.78,190.1,190.08,4.734]
[1760998873371,4.54985904,190.13,190.09,2.87]
[1760998874168,2.78,190.12,190.09,7.6037]
[1760998874369,2.78,190.12,190.05,2.87]
[1760998874570,4.54985904,190.11,190.05,2.87]
[1760998875475,2.63,190.1,190.05,2.87]
[1760998875976,2.63,190.1,190.07,4.7342]
[1760998877576,2.63,190.1,190.08,4.734]
[1760998877776,1.76985904,190.11,190.08,7.544]
[1760998878273,4.39985904,190.11,190.08,7.544]
[1760998879173,2.63,190.1,190.08,4.734]
[1760998879476,1.76985904,190.16,190.09,2.81]
[1760998879682,4.39985904,190.16,190.09,2.81]
[1760998879882,2.63,190.15,190.09,2.81]
[1760998880380,2.63,190.15,190.11,2.81]
[1760998880973,2.63,190.15,190.12,4.7329]
[1760998881173,2.63,190.15,190.12,7.5429]
[1760998883482,2.63,190.15,190.12,4.7329]
[1760998889182,2.63,190.15,190.12,7.5229]
[1760998893888,2.86,190.2,190.14,2.79]
[1760998894997,2.86,190.2,190.14,7.5224]
[1760998895198,2.86,190.22,190.15,2.79]
[1760998895696,2.86,190.25,190.19,4.7312]
[1760998896197,2.86,190.25,190.2,7.521]
[1760998897091,2.86,190.28,190.16,7.66165785]
[1760998897300,2.86,190.28,190.2,2.79]
[1760998897491,43.66,190.3,190.2,2.79]
[1760998897894,46.52,190.3,190.2,2.79]
[1760998898396,2.86,190.3,190.2,2.79]
[1760998898798,2.86,190.3,190.26,2.79]
[1760998901497,2.86,190.3,190.21,2.79]
[1760998901803,43.66,190.31,190.17,2.79]
[1760998901804,2.86,190.28,190.17,2.79]
[1760998902702,2.86,190.27,190.19,4.7312]
[1760998902898,2.86,190.25,190.19,4.7312]
[1760998903097,2.86,190.25,190.17,7.5217]
[1760998903504,2.86,190.25,190.14,2.79]
[1760998903693,2.76557517,190.23,190.14,2.79]
[1760998903997,2.86,190.22,190.14,2.79]
[1760998905004,2.86,190.21,190.14,2.79]
[1760998908295,2.86,190.21,190.14,7.5224]
[1760998910803,4.731,190.21,190.11,7.5231]
[1760998911108,2.86,190.2,190.11,4.7331]
[1760998911298,2.86,190.2,190.12,2.79]
[1760998913309,2.86,190.2,190.12,7.5229]
[1760998913495,2.86,190.2,190.13,2.79]
[1760998916013,2.86,190.2,190.14,2.79]
[1760998917514,2.86,190.2,190.15,2.87]
[1760998917712,10.15597517,190.23,190.15,2.87]
[1760998918717,2.66,190.22,190.15,2.87]
[1760998919010,2.66,190.22,190.16,2.87]
[1760998919708,7.3907,190.22,190.16,2.87]
[1760998919908,2.66,190.21,190.16,2.87]
[1760998922816,2.66,190.19,190.13,7.6027]
[1760998923002,2.66,190.19,190.1,2.87]
[1760998923207,2.66,190.18,190.1,2.87]
[1760998924110,2.66,190.16,190.1,2.87]
[1760998924318,2.66,190.16,190.07,4.87165785]
[1760998924319,2.66,190.16,190.07,2.87]
[1760998925917,2.66,190.14,190.07,2.87]
[1760998926115,2.66,190.13,190.07,2.87]
[1760998926418,5.42557517,190.18,190.07,2.87]
[1760998926618,2.66,190.18,190.11,2.87]
[1760998927418,2.66,190.18,190.12,2.87]
[1760998929221,2.66,190.18,190.09,2.87]
[1760998930625,2.66,190.18,190.13,2.87]
[1760998931919,2.66,190.18,190.12,4.7328]
[1760998933625,2.66,190.17,190.1,7.6034]
[1760998934020,2.66,190.17,190.1,2.87]
[1760998934227,43.66,190.19,190.13,2.87]
[1760998934228,46.32,190.19,190.13,2.87]
[1760998934418,2.66,190.18,190.13,2.87]
[1760998935528,2.66,190.18,190.12,4.7329]
[1760998936122,2.62,190.17,190.11,2.64]
[1760998937034,2.62,190.17,190.13,2.64]
[1760998940433,43.66,190.18,190.14,2.64]
[1760998940630,7.50821595,190.24,190.15,2.64]
[1760998940833,2.62,190.24,190.15,2.64]
[1760998942029,7.3502,190.24,190.17,7.3717]
[1760998942232,7.3502,190.24,190.17,2.64]
[1760998942536,2.62,190.23,190.17,2.64]
[1760998943437,2.62,190.23,190.16,4.7319]
[1760998944531,2.62,190.21,190.16,4.7319]
[1760998945432,2.62,190.21,190.17,2.64]
[1760998946532,4.7302,190.24,190.17,2.64]
[1760998946743,7.3502,190.24,190.17,2.64]
[1760998947439,2.62,190.24,190.18,2.73]
[1760998948734,2.62,190.24,190.18,7.4615]
[1760998950126,7.3503,190.24,190.18,2.73]
[1760998950332,2.76,190.23,190.15,7.4621]
[1760998950733,2.76,190.21,190.15,7.4621]
[1760998952842,4.5294155,190.21,190.15,7.4621]
[1760998954940,1.7694155,190.19,190.15,2.73]
[1760998955136,43.72,190.22,190.1,1.7694155]
[1760998955137,1.7694155,190.17,190.1,7.60165785]
[1760998955337,2.76,190.14,190.1,2.73]
[1760998955531,1.7694155,190.13,190.08,4.87165785]
[1760998955738,1.7694155,190.13,190.08,2.73]
[1760998955739,2.76,190.12,190.08,2.73]
[1760998958161,1.7694155,190.11,190.08,2.73]
[1760998958336,4.5294155,190.11,190.08,2.73]
[1760998959844,4.5294155,190.11,190.05,7.4647]
[1760998960439,4.5294155,190.11,190.06,4.7344]
[1760998960646,4.5294155,190.11,190.07,2.73]
[1760998962345,2.76,190.1,190.07,2.73]
[1760998962546,2.76,190.1,190.06,4.7344]
[1760998963348,2.76,190.1,190.06,7.4644]
[1760998963752,2.76,190.1,190.07,2.73]
[1760998964744,48.2494155,190.11,190.08,2.73]
[1760998964949,43.72,190.11,190.08,2.73]
[1760998965350,46.48,190.11,190.08,2.73]
[1760998965753,48.2494155,190.11,190.08,2.73]
[1760998967461,48.2494155,190.11,190.07,7.4642]
[1760998967855,48.2494155,190.11,190.08,2.73]
[1760998968452,45.4894155,190.11,190.08,2.73]
[1760998968859,48.2494155,190.11,190.08,2.73]
[1760998970163,46.48,190.11,190.08,2.73]
[1760998970563,43.72,190.11,190.09,2.73]
[1760998971555,43.72,190.11,190.09,7.4637]
[1760998974763,46.48,190.11,190.07,7.4642]
[1760998974962,43.68,190.1,190.07,7.4642]
[1760998975160,2.76,190.11,190.07,7.4642]
[1760998975359,28.26,190.1,190.08,7.464]
[1760998975960,28.26,190.1,190.06,4.7345]
[1760998976158,28.26,190.1,190.07,2.73]
[1760998976159,31.02,190.1,190.07,2.73]
[1760998976962,28.26,190.1,190.07,4.7342]
[1760998977167,28.26,190.1,190.08,2.73]
[1760998978563,30.95,190.1,190.08,2.73]
[1760998979168,30.95,190.1,190.07,7.6442]
[1760998982566,28.26,190.1,190.03,4.87165785]
[1760998982770,2.69,190.04,189.98,4.67146703]
[1760998982968,1.7694155,190.0,189.94,2.91]
[1760998983269,1.7694155,190.0,189.95,2.91]
[1760998983270,2.69,189.99,189.95,2.91]
[1760998983867,2.69,189.99,189.89,8.29112243]
[1760998984073,1.7694155,189.98,189.9,2.91]
[1760998984372,4.4594155,189.98,189.9,2.91]
[1760998984561,2.69,189.97,189.92,7.648]
[1760998984758,2.69,189.97,189.93,2.91]
[1760998985162,1.7694155,189.96,189.93,2.91]
[1760998985373,4.4594155,189.96,189.93,2.91]
[1760998986070,2.69,189.96,189.93,2.91]
[1760998986271,4.4594155,189.98,189.93,2.91]
[1760998987765,1.7694155,190.0,189.95,2.91]
[1760998987965,42.11,190.01,189.95,2.91]
[1760998987966,39.42,190.01,189.95,2.91]
[1760998988569,39.42,190.01,190.0,2.91]
[1760998989075,1.7694155,190.04,190.0,4.7359]
[1760998989267,4.4594155,190.06,190.01,2.91]
[1760998989973,2.69,190.05,190.01,2.91]
[1760998990164,1.7694155,190.04,190.01,2.91]
[1760998990770,4.4594155,190.04,190.01,2.91]
[1760998990970,4.4594155,190.04,190.0,4.7359]
[1760998991974,1.7694155,190.04,190.02,2.91]
[1760998992274,1.7694155,190.06,190.02,2.91]
[1760998992471,4.4594155,190.06,190.02,2.91]
[1760998992678,2.69,190.05,190.02,2.91]
[1760998993083,1.7694155,190.06,190.02,2.91]
[1760998993871,1.7694155,190.06,190.02,7.6454]
[1760998994067,1.7694155,190.09,190.03,2.91]
[1760998994677,2.69,190.12,190.06,2.91]
[1760998994979,1.7694155,190.11,190.06,2.91]
[1760998995683,2.75,190.1,190.06,2.91]
[1760998995982,1.7694155,190.09,190.02,2.91]
[1760998996181,4.5194155,190.07,190.02,2.91]
[1760998996477,4.5194155,190.07,190.03,7.6452]
[1760998997073,4.5194155,190.07,190.04,2.91]
[1760998997272,4.5194155,190.07,190.04,7.6449]
[1760998997472,1.7694155,190.09,190.05,2.91]
[1760998998276,1.7694155,190.07,190.04,4.735]
[1760998998474,4.5194155,190.07,190.04,4.735]
[1760998999478,4.5194155,190.07,190.04,7.645]
[1760999000173,1.7694155,190.07,190.04,7.645]
[1760999000485,1.7694155,190.09,189.99,8.29112243]
[1760999000784,4.5194155,190.09,190.01,2.91]
[1760999001577,2.75,190.08,190.05,7.6447]
[1760999002080,1.7694155,190.09,190.06,2.91]
[1760999002285,1.7694155,190.09,190.06,7.6444]
[1760999005085,2.75,190.08,190.06,4.7344]
[1760999006186,2.75,190.08,189.96,19.25656039]
[1760999006187,1.7694155,190.07,190.04,2.91]
[1760999006580,1.7694155,190.09,190.06,7.6443]
[1760999007973,1.7694155,190.09,190.08,2.68]
[1760999008976,1.7694155,190.09,190.07,4.7341]
[1760999011183,1.7694155,190.09,190.08,2.68]
[1760999011679,1.7694155,190.09,190.0,8.29112243]
[1760999011680,1.7694155,190.11,190.09,7.4138]
[1760999011878,1.7694155,190.13,190.1,2.68]
[1760999012290,46.58,190.16,190.1,2.68]
[1760999012586,1.7694155,190.14,190.1,2.68]
[1760999012890,46.58,190.16,190.1,2.68]
[1760999013089,2.86,190.15,190.11,4.7333]
[1760999013288,2.86,190.15,190.11,7.4133]
[1760999018390,2.86,190.15,190.11,4.7333]
[1760999018589,2.86,190.13,190.09,4.7337]
[1760999021698,2.86,190.13,190.07,2.68]
[1760999022194,2.86,190.1,190.06,4.7344]
[1760999022386,2.86,190.1,190.06,2.68]
[1760999022588,2.7662405,190.11,190.08,4.7339]
[1760999022789,2.86,190.13,190.08,2.68]
[1760999023795,2.86,190.13,190.04,2.68]
[1760999024997,2.86,190.13,190.07,4.7342]
[1760999025903,2.86,190.1,190.07,4.7342]
[1760999026102,2.86,190.1,190.05,7.4147]
[1760999026399,2.86,190.1,190.01,2.68]
[1760999028104,2.86,190.1,190.06,7.4144]
[1760999028699,2.86,190.1,190.06,4.7344]
[1760999029098,2.86,190.1,190.07,4.7342]
[1760999031100,43.68,190.12,190.02,2.68]
[1760999031297,2.7662405,190.13,190.02,2.68]
[1760999031998,5.6262405,190.13,190.09,7.4137]
[1760999032301,2.86,190.12,190.06,2.68]
[1760999033506,43.68,190.12,190.06,2.68]
[1760999033707,2.86,190.11,190.06,2.68]
[1760999034005,2.86,190.11,190.07,4.7342]
[1760999034798,2.86,190.11,190.08,4.734]
[1760999036004,46.54,190.12,190.09,2.68]
[1760999036212,43.68,190.12,190.1,2.68]
[1760999036402,4.88821595,190.16,190.1,2.68]
[1760999036608,2.86,190.17,190.1,2.68]
[1760999037002,2.86,190.17,190.13,7.4127]
[1760999037404,2.86,190.17,190.14,2.83]
[1760999040610,49.3462405,190.18,190.14,2.83]
[1760999040813,2.86,190.17,190.13,4.7327]
[1760999041410,2.86,190.17,190.13,7.5627]
[1760999042412,2.86,190.17,190.14,2.83]
[1760999042711,49.3462405,190.18,190.14,2.83]
[1760999043808,46.4862405,190.18,190.14,2.83]
[1760999044015,49.3462405,190.18,190.14,2.83]
[1760999045910,2.86,190.17,190.14,2.83]
[1760999046115,2.86,190.17,190.13,4.7327]
[1760999046116,2.86,190.17,190.13,7.5627]
[1760999048206,2.86,190.17,190.13,4.7327]
[1760999049008,2.86,190.17,190.13,7.5627]
[1760999050010,2.86,190.17,190.09,4.9032066]
[1760999050011,2.7662405,190.15,190.09,2.83]
[1760999050211,2.7662405,190.12,190.06,2.83]
[1760999051015,5.6262405,190.12,190.09,4.7337]
[1760999051215,5.6262405,190.12,190.09,7.5637]
[1760999054420,2.7662405,190.12,190.1,7.5635]
[1760999055120,43.68,190.14,190.12,2.83]
[1760999056411,43.68,190.14,190.08,2.8]
[1760999058233,46.53,190.14,190.11,4.7331]
[1760999058627,2.85,190.13,190.11,4.7331]
[1760999059426,46.53,190.14,190.11,7.5331]
[1760999060319,2.85,190.13,190.11,7.5331]
[1760999061422,2.85,190.13,190.09,4.7336]
[1760999061621,2.7662405,190.12,190.09,4.7336]
[1760999061927,2.85,190.11,190.09,4.7336]
[1760999062126,46.53,190.1,190.09,4.7336]
[1760999062723,43.68,190.1,190.09,4.7336]
[1760999065519,46.53,190.1,190.09,4.7336]
[1760999065722,46.53,190.1,190.05,4.9032066]
[1760999065932,2.85,190.09,190.07,4.7342]
[1760999068230,46.55,190.1,190.07,7.6042]
[1760999069132,43.68,190.09,190.07,7.6042]
[1760999069433,46.55,190.09,190.07,7.6042]
[1760999070936,46.55,190.09,190.07,4.7342]
[1760999071237,46.55,190.09,190.07,7.6042]
[1760999071930,46.55,190.09,190.07,4.7342]
[1760999072125,2.87,190.08,190.07,4.7342]
[1760999073635,2.87,190.08,190.05,4.7347]
[1760999074332,2.87,190.08,190.06,4.7345]
[1760999074730,2.87,190.06,190.03,4.9032066]
[1760999074933,1.77173812,190.05,190.02,7.7732066]
[1760999075134,1.77173812,190.05,190.03,2.87]
[1760999075631,1.77173812,190.05,190.02,9.6386066]
[1760999075836,1.77173812,190.03,190.02,4.7354]
[1760999076034,48.32173812,190.03,190.02,4.7354]
[1760999078132,45.45173812,190.03,190.0,4.7359]
[1760999078339,46.55,190.02,190.0,4.7359]
[1760999079026,43.68,190.01,190.0,4.7359]
[1760999079228,48.32173812,190.01,190.0,4.7359]
[1760999079632,45.45173812,190.01,190.0,4.7359]
[1760999081943,1.77173812,190.01,190.0,4.7359]
[1760999082143,45.45173812,190.01,190.0,4.7359]
[1760999084346,1.77173812,190.01,190.0,4.7359]
[1760999084544,45.45173812,190.01,190.0,4.7359]
[1760999086234,48.32173812,190.01,190.0,4.7359]
[1760999086443,2.87,190.0,189.96,2.87]
[1760999086735,4.64173812,189.98,189.96,2.87]
[1760999087245,48.32173812,189.98,189.92,2.87]
[1760999087947,48.32173812,189.98,189.96,4.7369]
[1760999089642,48.32173812,189.98,189.96,7.6069]
[1760999090847,45.45173812,189.98,189.96,7.6069]
[1760999091051,43.68,189.98,189.97,2.87]
[1760999091638,43.68,189.98,189.96,4.7369]
[1760999091844,46.55,189.98,189.96,4.7369]
[1760999092241,46.55,189.98,189.96,7.6069]
[1760999093553,43.68,189.98,189.97,2.87]
[1760999094554,43.68,189.98,189.96,4.7369]
[1760999094758,43.68,189.98,189.96,7.6069]
[1760999095451,2.87,189.96,189.94,4.7375]
[1760999095651,2.87,189.96,189.9,2.87]
[1760999095954,2.87,189.94,189.9,2.87]
[1760999096154,2.87,189.94,189.89,2.87]
[1760999096456,2.87,189.93,189.89,2.87]
[1760999097955,2.87,189.93,189.91,4.7381]
[1760999101160,2.64,189.98,189.94,4.7374]
[1760999101365,22.34,189.97,189.95,2.78]
[1760999102160,2.64,190.0,189.97,4.7367]
[1760999102559,31.26,190.01,189.99,4.7362]
[1760999102763,33.9,190.01,189.99,4.7362]
[1760999103672,31.26,190.01,189.99,4.7362]
[1760999103864,2.64,190.0,189.99,4.7362]
[1760999104460,31.26,190.01,189.99,4.7362]
[1760999104764,2.64,190.01,189.99,4.7362]
[1760999105563,43.7,190.04,190.01,2.78]
[1760999105969,2.64,190.03,189.99,4.55173812]
[1760999106168,43.7,190.04,190.0,2.78]
[1760999106769,43.7,190.04,190.02,4.7354]
[1760999107168,43.7,190.04,190.02,7.5154]
[1760999107367,43.7,190.04,190.03,2.78]
[1760999107563,43.7,190.04,190.02,4.7354]
[1760999108070,43.7,190.04,190.02,7.5154]
[1760999109269,43.7,190.04,190.03,2.78]
[1760999109660,0.91590999,190.09,190.04,4.7349]
[1760999109965,2.64,190.08,190.05,2.78]
[1760999110363,2.64,190.08,190.02,2.78]
[1760999111269,2.64,190.08,190.05,4.7346]
[1760999111667,2.64,190.08,190.05,7.5146]
[1760999112073,2.64,190.08,190.05,4.7346]
[1760999113974,2.64,190.08,190.05,7.5146]
[1760999117481,2.64,190.08,190.05,4.7346]
[1760999121485,2.64,190.08,190.03,4.7352]
[1760999121682,1.77173812,190.06,190.03,4.7352]
[1760999121881,2.83,190.05,190.03,4.7352]
[1760999122185,2.83,190.05,189.98,2.9]
[1760999123073,2.83,190.05,190.03,4.7352]
[1760999125583,1.77173812,190.04,190.03,4.7352]
[1760999125887,4.60173812,190.04,190.0,2.9]
[1760999127181,4.60173812,190.04,190.02,4.7354]
[1760999128892,1.77173812,190.06,190.02,2.84]
[1760999129189,2.68,190.06,190.02,2.84]
[1760999129381,1.77173812,190.08,190.06,4.7344]
[1760999129885,4.45173812,190.08,190.06,4.7344]
[1760999136797,2.68,190.08,190.06,4.7344]
[1760999141396,2.68,190.08,190.06,7.5744]
[1760999141803,2.68,190.08,190.06,4.7344]
[1760999142702,2.68,190.08,190.04,4.735]
[1760999142892,2.68,190.07,190.04,4.735]
[1760999143093,2.68,190.07,190.0,2.84]
[1760999143403,2.68,190.07,190.02,4.7354]
[1760999143599,46.34,190.07,189.97,7.73849721]
[1760999143807,46.34,190.07,189.96,4.89849721]
[1760999143808,2.68,190.04,189.96,4.89849721]
[1760999144104,2.68,190.04,189.95,7.73849721]
[1760999144304,2.68,190.03,189.97,4.7367]
[1760999145611,2.68,190.01,189.97,4.7367]
[1760999148309,2.68,190.01,189.97,7.5767]
[1760999151811,2.68,190.01,189.97,4.7367]
[1760999152020,2.68,190.01,189.95,4.7372]
[1760999153314,2.68,189.98,189.95,7.5772]
[1760999154014,2.68,190.0,189.97,2.84]
[1760999156008,7.50294352,190.04,189.98,2.84]
[1760999156009,2.68,190.03,189.98,2.84]
[1760999157113,2.68,190.03,189.98,7.5764]
[1760999157815,2.68,190.03,189.99,2.78]
[1760999158611,2.68,190.03,189.98,7.5164]
[1760999161821,2.68,190.06,190.0,2.78]
[1760999162713,2.68,190.06,189.99,4.7362]
[1760999162714,4.7347,190.06,189.99,4.7362]
[1760999162913,2.68,190.05,189.99,4.7362]
[1760999163312,43.66,190.07,189.97,2.78]
[1760999163313,2.68,190.03,189.97,7.5167]
[1760999163514,2.68,190.03,189.94,2.78]
[1760999164816,43.68,190.02,189.94,2.78]
[1760999165020,2.68,190.01,189.95,4.7372]
[1760999165824,46.36,190.01,189.95,4.7372]
[1760999166219,43.68,190.01,189.95,4.7372]
[1760999166423,2.68,190.0,189.95,7.5172]
[1760999168226,2.68,189.99,189.95,7.5172]
[1760999168716,2.68,189.99,189.96,2.78]
[1760999169511,2.68,189.99,189.96,4.7369]
[1760999169724,2.68,189.99,189.97,2.78]
[1760999169925,2.68,189.99,189.96,4.7369]
[1760999170119,2.68,189.99,189.96,7.5169]
[1760999171618,2.68,189.99,189.96,4.7369]
[1760999171923,2.68,189.99,189.95,2.78]
[1760999172627,2.68,189.99,189.95,7.5172]
[1760999172928,2.68,189.99,189.96,2.78]
[1760999173320,46.36,190.0,189.97,2.78]
[1760999179326,2.68,189.99,189.97,2.78]
[1760999186535,2.68,189.99,189.96,7.567]
[1760999187729,43.66,189.98,189.96,7.567]
[1760999189139,43.66,189.97,189.96,7.567]
[1760999192034,2.68,189.99,189.96,7.567]
[1760999192333,46.34,189.98,189.96,7.567]
[1760999192936,2.68,189.98,189.96,7.567]
[1760999193139,43.66,189.97,189.96,7.567]
[1760999193435,46.34,189.98,189.96,7.567]
[1760999200534,43.66,189.97,189.96,7.567]
[1760999201643,46.34,189.97,189.96,7.567]
[1760999202445,43.66,189.97,189.96,7.567]
[1760999209242,43.66,189.97,189.96,12.46373082]
[1760999210149,43.66,189.97,189.96,7.567]
[1760999210551,46.34,189.97,189.96,4.737]
[1760999213649,2.68,189.97,189.96,4.737]
[1760999213851,46.34,189.97,189.96,4.737]
[1760999215549,43.66,189.97,189.96,4.737]
[1760999215747,43.66,189.97,189.96,7.437]
[1760999217952,43.66,189.97,189.96,12.33373082]
[1760999218751,43.66,189.97,189.96,7.437]
[1760999219348,46.38,189.97,189.96,4.737]
[1760999222955,43.66,189.97,189.96,4.737]
[1760999224250,43.66,189.97,189.96,7.597]
[1760999224451,43.66,189.97,189.96,12.49373082]
[1760999224649,43.66,189.97,189.96,7.597]
[1760999224846,43.66,189.97,189.96,12.49373082]
[1760999225353,46.38,189.97,189.96,9.63373082]
[1760999225557,46.38,189.97,189.96,4.737]
[1760999225761,43.66,189.97,189.96,7.597]
[1760999226257,6.5439012,190.06,189.96,7.597]
[1760999226258,4.49312337,190.02,189.96,4.89673082]
[1760999226448,28.66,190.01,189.99,2.86]
[1760999227148,28.66,190.01,190.0,4.7359]
[1760999227455,28.66,190.01,190.0,7.5959]
[1760999228453,2.72,190.02,190.0,7.5959]
[1760999228652,2.72,190.04,190.02,4.7353]
[1760999228857,46.36,190.04,190.02,7.5953]
[1760999229053,43.64,190.04,190.02,7.5953]
[1760999230954,43.64,190.04,190.03,2.86]
[1760999232361,43.64,190.04,190.02,4.7353]
[1760999232557,46.36,190.04,190.02,4.7353]
[1760999233260,2.72,190.03,190.02,4.7353]
[1760999233649,4.49312337,190.03,190.0,4.736]
[1760999233853,2.72,190.02,190.0,4.736]
[1760999234365,2.72,190.03,190.0,7.596]
[1760999234568,2.72,190.03,190.01,2.86]
[1760999235067,2.72,190.03,190.01,7.5956]
[1760999235252,2.72,190.03,190.01,4.7356]
[1760999236056,2.72,190.03,190.01,7.4756]
[1760999239268,2.72,190.03,190.01,4.7356]
[1760999240380,2.72,190.03,190.01,4.7356]
[1760999244973,2.72,190.03,190.01,7.4756]
[1760999245175,48.17312337,190.04,190.02,4.7354]
[1760999245472,4.55312337,190.04,190.02,4.7354]